lending/lending_fUSD_20250917
["ID","MTS","AMOUNT","RATE_DAILY","PERIOD"]
[385908516,1758131443832,-400.0,0.00024039,2]
[385908518,1758131443841,-150.0,0.00024039,2]
[385908520,1758131443850,-400.0,0.00024039,2]
[385908522,1758131443859,-404.63568281,0.00024039,2]
[385908524,1758131443869,-400.0,0.00024039,2]
[385908526,1758131443878,-400.0,0.00024039,2]
[385908528,1758131443888,-2034.54,0.00024039,2]
[385908530,1758131443897,-150.0,0.00024039,2]
[385908553,1758131444105,-400.0,0.00024039,2]
[385908555,1758131444115,-150.0,0.00024039,2]
[385908557,1758131444124,-436.53,0.00024039,2]
[385908559,1758131444133,-400.0,0.00024039,2]
[385908561,1758131444143,-400.0,0.00024039,2]
[385908563,1758131444152,-400.0,0.00024039,2]
[385908565,1758131444161,-400.0,0.00024039,2]
[385908567,1758131444170,-400.0,0.00024039,2]
[385908569,1758131444180,-400.0,0.00024039,2]
[385908571,1758131444189,-400.0,0.00024039,2]
[385908573,1758131444198,-405.93270289,0.00024039,2]
[385908575,1758131444208,-600.71,0.00024039,2]
[385908577,1758131444217,-929.04,0.00024039,2]
[385908579,1758131444226,-400.0,0.00024039,2]
[385908581,1758131444236,-400.0,0.00024039,2]
[385908583,1758131444246,-400.0,0.00024039,2]
[385908585,1758131444256,-400.0,0.00024039,2]
[385908587,1758131444267,-400.0,0.00024039,2]
[385908589,1758131444277,-402.53197779,0.00024039,2]
[385908591,1758131444287,-400.0,0.00024039,2]
[385908593,1758131444296,-789.08,0.00024039,2]
[385908595,1758131444306,-400.0,0.00024039,2]
[385908597,1758131444315,-400.0,0.00024039,2]
[385908599,1758131444324,-400.0,0.00024039,2]
[385908601,1758131444334,-400.0,0.00024039,2]
[385908603,1758131444343,-400.0,0.00024039,2]
[385908605,1758131444353,-400.0,0.00024039,2]
[385908607,1758131444362,-400.0,0.00024039,2]
[385908609,1758131444371,-400.0,0.00024039,2]
[385908611,1758131444380,-586.41,0.00024039,2]
[385908613,1758131444390,-270.98692835,0.00024039,2]
[385908615,1758131444399,-171.04374526,0.00024039,2]
[385908617,1758131444409,-402.52818329,0.00024039,2]
[385908620,1758131444418,-400.0,0.00024039,2]
[385908622,1758131444427,-973.91,0.00024039,2]
[385908624,1758131444437,-400.0,0.00024039,2]
[385908625,1758131444446,-400.0,0.00024039,2]
[385908626,1758131444455,-488.2,0.00024039,2]
[385908627,1758131444465,-400.0,0.00024039,2]
[385908628,1758131444474,-407.12525545,0.00024039,2]
[385908629,1758131444483,-400.0,0.00024039,2]
[385908630,1758131444493,-401.40241766,0.00024039,2]
[385908631,1758131444503,-400.0,0.00024039,2]
[385908632,1758131444513,-400.0,0.00024039,2]
[385908633,1758131444523,-811.5,0.00024039,2]
[385908634,1758131444531,-400.0,0.00024039,2]
[385908635,1758131444541,-561.36,0.00024039,2]
[385908636,1758131444550,-400.0,0.00024039,2]
[385908637,1758131444560,-426.40908509,0.00024039,2]
[385908638,1758131444570,-400.0,0.00024039,2]
[385908639,1758131444578,-151.0,0.00024039,7]
[385908640,1758131444588,-400.0,0.00024039,2]
[385908641,1758131444597,-400.0,0.00024039,2]
[385908642,1758131444607,-400.0,0.00024039,2]
[385908643,1758131444616,-400.0,0.00024039,2]
[385908644,1758131444625,-400.0,0.00024039,2]
[385908645,1758131444635,-400.0,0.00024039,2]
[385908646,1758131444644,-405.42022815,0.00024039,2]
[385908647,1758131444654,-400.0,0.00024039,2]
[385908648,1758131444663,-400.0,0.00024039,2]
[385908649,1758131444673,-400.0,0.00024039,2]
[385908650,1758131444682,-500.97,0.00024039,2]
[385908651,1758131444691,-514.08,0.00024039,2]
[385908652,1758131444700,-400.0,0.00024039,2]
[385908653,1758131444709,-400.0,0.00024039,2]
[385908654,1758131444719,-400.0,0.00024039,2]
[385908655,1758131444728,-440.9,0.00024039,2]
[385908656,1758131444737,-424.33,0.00024039,2]
[385908657,1758131444747,-400.0,0.00024039,2]
[385908658,1758131444757,-605.89,0.00024039,2]
[385908659,1758131444766,-400.0,0.00024039,2]
[385908660,1758131444776,-400.0,0.00024039,2]
[385908661,1758131444785,-400.0,0.00024039,2]
[385908662,1758131444794,-552.42,0.00024039,2]
[385908663,1758131444803,-400.0,0.00024039,2]
[385908664,1758131444813,-400.0,0.00024039,2]
[385908665,1758131444822,-500.0,0.00024039,2]
[385908666,1758131444832,-446.47615012,0.00024039,2]
[385908667,1758131444841,-400.0,0.00024039,2]
[385908668,1758131444851,-400.0,0.00024039,2]
[385908669,1758131444861,-404.64142278,0.00024039,2]
[385908670,1758131444870,-400.0,0.00024039,2]
[385908671,1758131444880,-670.68,0.00024039,2]
[385908672,1758131444890,-500.0,0.00024039,2]
[385908673,1758131444900,-400.0,0.00024039,2]
[385908674,1758131444910,-517.84774709,0.00024039,2]
[385908675,1758131444923,-400.0,0.00024039,2]
[385908676,1758131444932,-151.0,0.00024039,7]
[385908677,1758131444942,-400.0,0.00024039,2]
[385908678,1758131444951,-400.0,0.00024039,2]
[385908679,1758131444961,-400.0,0.00024039,2]
[385908680,1758131444971,-543.04,0.00024039,2]
[385908681,1758131444980,-400.0,0.00024039,2]
[385908682,1758131444989,-443.28,0.00024039,2]
[385908683,1758131445001,-537.33,0.00024039,2]
[385908684,1758131445011,-407.15,0.00024039,2]
[385908685,1758131445021,-400.0,0.00024039,2]
[385908686,1758131445030,-400.0,0.00024039,2]
[385908687,1758131445040,-400.0,0.00024039,2]
[385908688,1758131445049,-402.59010936,0.00024039,2]
[385908689,1758131445058,-400.0,0.00024039,2]
[385908690,1758131445068,-464.27,0.00024039,2]
[385908691,1758131445077,-400.0,0.00024039,2]
[385908692,1758131445087,-400.0,0.00024039,2]
[385908693,1758131445096,-956.81,0.00024039,2]
[385908694,1758131445105,-400.0,0.00024039,2]
[385908695,1758131445115,-400.0,0.00024039,2]
[385908696,1758131445124,-400.0,0.00024039,2]
[385908697,1758131445133,-405.01910094,0.00024039,2]
[385908698,1758131445143,-400.0,0.00024039,2]
[385908699,1758131445152,-400.0,0.00024039,2]
[385908700,1758131445162,-400.0,0.00024039,2]
[385908701,1758131445171,-400.0,0.00024039,2]
[385908702,1758131445180,-400.0,0.00024039,2]
[385908703,1758131445189,-532.35,0.00024039,2]
[385908704,1758131445199,-400.0,0.00024039,2]
[385908705,1758131445208,-400.0,0.00024039,2]
[385908706,1758131445217,-400.0,0.00024039,2]
[385908707,1758131445226,-400.0,0.00024039,2]
[385908708,1758131445236,-400.0,0.00024039,2]
[385908709,1758131445245,-400.0,0.00024039,2]
[385908710,1758131445255,-400.0,0.00024039,2]
[385908711,1758131445264,-400.0,0.00024039,2]
[385908712,1758131445273,-400.0,0.00024039,2]
[385908713,1758131445283,-428.09120003,0.00024039,2]
[385908714,1758131445292,-521.19393394,0.00024039,2]
[385908715,1758131445302,-400.0,0.00024039,2]
[385908716,1758131445312,-400.0,0.00024039,2]
[385908717,1758131445321,-511.73,0.00024039,2]
[385908718,1758131445330,-400.0,0.00024039,2]
[385908719,1758131445340,-500.0,0.00024039,2]
[385908720,1758131445350,-635.73,0.00024039,2]
[385908721,1758131445359,-400.0,0.00024039,2]
[385908722,1758131445369,-400.0,0.00024039,2]
[385908723,1758131445378,-407.93,0.00024039,2]
[385908724,1758131445388,-400.0,0.00024039,2]
[385908725,1758131445397,-400.0,0.00024039,2]
[385908726,1758131445407,-305.46662263,0.00024039,2]
[385908727,1758131445416,-440.8,0.00024039,2]
[385908728,1758131445426,-400.0,0.00024039,2]
[385908729,1758131445435,-400.0,0.00024039,2]
[385908730,1758131445445,-414.59392371,0.00024039,2]
[385908731,1758131445455,-530.97,0.00024039,2]
[385908732,1758131445464,-404.10566575,0.00024039,2]
[385908733,1758131445474,-400.0,0.00024039,2]
[385908734,1758131445483,-400.0,0.00024039,2]
[385908735,1758131445492,-400.0,0.00024039,2]
[385908736,1758131445502,-400.0,0.00024039,2]
[385908737,1758131445512,-459.41,0.00024039,2]
[385908738,1758131445521,-500.0,0.00024039,2]
[385908739,1758131445531,-408.45775406,0.00024039,2]
[385908740,1758131445540,-400.0,0.00024039,2]
[385908741,1758131445549,-400.0,0.00024039,2]
[385908742,1758131445559,-400.0,0.00024039,2]
[385908743,1758131445569,-400.0,0.00024039,2]
[385908744,1758131445578,-411.08661639,0.00024039,2]
[385908745,1758131445588,-400.0,0.00024039,2]
[385908746,1758131445597,-400.0,0.00024039,2]
[385908747,1758131445607,-400.0,0.00024039,2]
[385908748,1758131445616,-198.44026447,0.00024039,2]
[385908749,1758131445626,-500.0,0.00024039,2]
[385908750,1758131445635,-403.02625791,0.00024039,2]
[385908751,1758131445645,-400.0,0.00024039,2]
[385908752,1758131445654,-536.31,0.00024039,2]
[385908753,1758131445664,-400.0,0.00024039,2]
[385908754,1758131445674,-400.0,0.00024039,2]
[385908755,1758131445684,-404.61981047,0.00024039,2]
[385908756,1758131445694,-400.0,0.00024039,2]
[385908757,1758131445704,-400.0,0.00024039,2]
[385908758,1758131445714,-400.0,0.00024039,2]
[385908759,1758131445724,-474.95,0.00024039,2]
[385908760,1758131445733,-539.34,0.00024039,2]
[385908761,1758131445742,-400.0,0.00024039,2]
[385908762,1758131445753,-500.0,0.00024039,2]
[385908763,1758131445762,-403.62487543,0.00024039,2]
[385908764,1758131445772,-673.93,0.00024039,2]
[385908765,1758131445781,-400.0,0.00024039,2]
[385908766,1758131445791,-171.83545238,0.00024039,2]
[385908767,1758131445800,-400.0,0.00024039,2]
[385908768,1758131445809,-537.69,0.00024039,2]
[385908769,1758131445819,-400.0,0.00024039,2]
[385908770,1758131445828,-412.47011798,0.00024039,2]
[385908771,1758131445838,-400.0,0.00024039,2]
[385908772,1758131445848,-400.0,0.00024039,2]
[385908773,1758131445857,-400.0,0.00024039,2]
[385908774,1758131445866,-400.0,0.00024039,2]
[385908775,1758131445876,-613.04,0.00024039,2]
[385908776,1758131445886,-400.0,0.00024039,2]
[385908777,1758131445896,-400.0,0.00024039,2]
[385908778,1758131445905,-400.0,0.00024039,2]
[385908779,1758131445915,-400.0,0.00024039,2]
[385908780,1758131445927,-400.0,0.00024039,2]
[385908781,1758131445936,-400.0,0.00024039,2]
[385908782,1758131445945,-612.89,0.00024039,2]
[385908783,1758131445955,-400.0,0.00024039,2]
[385908784,1758131445965,-458.12,0.00024039,2]
[385908786,1758131445974,-400.0,0.00024039,2]
[385908788,1758131445983,-400.0,0.00024039,2]
[385908789,1758131445992,-506.5,0.00024039,2]
[385908790,1758131446004,-400.0,0.00024039,2]
[385908791,1758131446014,-151.0,0.00024039,7]
[385908793,1758131446023,-400.0,0.00024039,2]
[385908794,1758131446033,-400.0,0.00024039,2]
[385908795,1758131446043,-467.43,0.00024039,2]
[385908796,1758131446052,-358.14184466,0.00024039,2]
[385908797,1758131446061,-400.0,0.00024039,2]
[385908798,1758131446071,-400.0,0.00024039,2]
[385908799,1758131446080,-400.0,0.00024039,2]
[385908801,1758131446089,-400.0,0.00024039,2]
[385908802,1758131446100,-400.0,0.00024039,2]
[385908803,1758131446112,-400.0,0.00024039,2]
[385908804,1758131446123,-400.0,0.00024039,2]
[385908806,1758131446132,-400.0,0.00024039,2]
[385908808,1758131446142,-444.54,0.00024039,2]
[385908810,1758131446151,-400.0,0.00024039,2]
[385908813,1758131446161,-400.0,0.00024039,2]
[385908816,1758131446170,-400.0,0.00024039,2]
[385908819,1758131446179,-400.0,0.00024039,2]
[385908822,1758131446189,-400.0,0.00024039,2]
[385908825,1758131446198,-402.74893211,0.00024039,2]
[385908828,1758131446207,-400.0,0.00024039,2]
[385908831,1758131446216,-400.0,0.00024039,2]
[385908834,1758131446225,-404.88094001,0.00024039,2]
[385908835,1758131446234,-400.0,0.00024039,2]
[385908837,1758131446244,-518.06,0.00024039,2]
[385908838,1758131446256,-400.0,0.00024039,2]
[385908839,1758131446265,-300.0,0.00024039,2]
[385908840,1758131446274,-400.0,0.00024039,2]
[385908841,1758131446283,-400.0,0.00024039,2]
[385908842,1758131446293,-449.17,0.00024039,2]
[385908843,1758131446302,-418.27689822,0.00024039,2]
[385908844,1758131446311,-474.13,0.00024039,2]
[385908845,1758131446321,-400.0,0.00024039,2]
[385908846,1758131446330,-400.0,0.00024039,2]
[385908847,1758131446339,-400.0,0.00024039,2]
[385908848,1758131446348,-400.0,0.00024039,2]
[385908849,1758131446358,-400.0,0.00024039,2]
[385908850,1758131446367,-692.35,0.00024039,2]
[385908851,1758131446376,-400.0,0.00024039,2]
[385908852,1758131446385,-400.0,0.00024039,2]
[385908853,1758131446395,-400.0,0.00024039,2]
[385908854,1758131446404,-400.0,0.00024039,2]
[385908855,1758131446413,-427.65994022,0.00024039,2]
[385908856,1758131446424,-400.0,0.00024039,2]
[385908857,1758131446433,-592.72,0.00024039,2]
[385908858,1758131446442,-443.07,0.00024039,2]
[385908859,1758131446452,-400.0,0.00024039,2]
[385908860,1758131446461,-413.29,0.00024039,2]
[385908861,1758131446470,-400.0,0.00024039,2]
[385908862,1758131446479,-452.64,0.00024039,2]
[385908863,1758131446488,-400.0,0.00024039,2]
[385908864,1758131446497,-400.0,0.00024039,2]
[385908865,1758131446510,-500.0,0.00024039,2]
[385908866,1758131446519,-400.0,0.00024039,2]
[385908867,1758131446529,-400.0,0.00024039,2]
[385908868,1758131446538,-400.0,0.00024039,2]
[385908869,1758131446548,-414.65287143,0.00024039,2]
[385908870,1758131446558,-400.0,0.00024039,2]
[385908871,1758131446567,-400.0,0.00024039,2]
[385908872,1758131446577,-413.42298876,0.00024039,2]
[385908873,1758131446586,-236.17817,0.00024039,7]
[385908874,1758131446595,-436.77087659,0.00024039,2]
[385908875,1758131446606,-400.65,0.00024039,2]
[385908876,1758131446615,-400.0,0.00024039,2]
[385908877,1758131446624,-400.0,0.00024039,2]
[385908878,1758131446634,-400.0,0.00024039,2]
[385908879,1758131446643,-400.0,0.00024039,2]
[385908880,1758131446652,-400.0,0.00024039,2]
[385908881,1758131446662,-400.0,0.00024039,2]
[385908882,1758131446671,-465.73,0.00024039,2]
[385908883,1758131446680,-464.32,0.00024039,2]
[385908884,1758131446689,-407.69902823,0.00024039,2]
[385908885,1758131446698,-416.4431917,0.00024039,2]
[385908886,1758131446708,-949.62,0.00024039,2]
[385908887,1758131446718,-400.0,0.00024039,2]
[385908888,1758131446728,-400.0,0.00024039,2]
[385908889,1758131446737,-400.0,0.00024039,2]
[385908890,1758131446747,-400.0,0.00024039,2]
[385908891,1758131446758,-7162.692994,0.00024061,2]
[385908892,1758131446768,-460.01,0.00024091,2]
[385908893,1758131446778,-150.0,0.00024104,4]
[385908894,1758131446787,-6258.55912893,0.00024126,2]
[385908895,1758131446797,-150.0,0.00024139,4]
[385908896,1758131446806,-150.0,0.00024139,4]
[385908897,1758131446816,-151.0,0.00024152,7]
[385908898,1758131446825,-7162.692994,0.00024183,2]
[385908899,1758131446835,-1000.0,0.000242,2]
[385908900,1758131446845,-1000.0,0.000242,2]
[385908901,1758131446854,-1000.0,0.000242,3]
[385908902,1758131446864,-1051.0,0.000242,3]
[385908903,1758131446873,-1000.0,0.000242,3]
[385908904,1758131446883,-151.0,0.000242,7]
[385908905,1758131446893,-857.02800732,0.00024203,2]
[385908906,1758131446902,-983.27026556,0.00024213,2]
[385908907,1758131446912,-168.0,0.00024244,2]
[385908908,1758131446927,-150.0,0.00024297,4]
[385908909,1758131446944,-500.0,0.00024299,2]
[385908910,1758131446953,-500.0,0.00024299,2]
[385908911,1758131446963,-150.0,0.00024299,2]
[385908912,1758131446972,-500.0,0.00024299,2]
[385908913,1758131446981,-500.0,0.00024299,2]
[385908914,1758131446991,-150.0,0.00024299,2]
[385908915,1758131447002,-152.70771985,0.00024299,2]
[385908916,1758131447011,-500.0,0.00024299,2]
[385908917,1758131447021,-500.0,0.00024299,2]
[385908918,1758131447031,-354.3001426,0.00024299,2]
[385908919,1758131447041,-500.0,0.00024299,2]
[385908920,1758131447051,-500.0,0.00024299,2]
[385908921,1758131447060,-500.0,0.00024299,2]
[385908922,1758131447069,-565.0,0.00024299,2]
[385908923,1758131447078,-500.0,0.00024299,2]
[385908924,1758131447088,-3122.0,0.00024299,2]
[385908925,1758131447097,-150.0,0.00024299,2]
[385908926,1758131447106,-150.0,0.00024299,2]
[385908927,1758131447115,-500.0,0.00024299,2]
[385908928,1758131447124,-150.0,0.00024299,2]
[385908929,1758131447134,-500.0,0.00024299,2]
[385908930,1758131447143,-211.65534233,0.00024299,2]
[385908931,1758131447153,-500.0,0.00024299,2]
[385908932,1758131447346,-500.0,0.00024299,2]
[385908933,1758131447356,-150.0,0.00024299,2]
[385908934,1758131447366,-152.07398961,0.00024299,2]
[385908935,1758131447375,-150.0,0.00024299,2]
[385908936,1758131447385,-500.0,0.00024299,2]
[385908937,1758131447394,-150.0,0.00024299,2]
[385908938,1758131447404,-1000.0,0.000243,3]
[385908939,1758131447414,-1268.0,0.000243,3]
[385908940,1758131447425,-1000.0,0.000243,3]
[385908941,1758131447435,-1000.0,0.000243,3]
[385908942,1758131447444,-1000.0,0.000243,4]
[385908943,1758131447454,-1000.0,0.000243,4]
[385908944,1758131447463,-1000.0,0.000243,3]
[385908945,1758131447473,-211.97476434,0.000243,3]
[385908946,1758131447483,-160.0,0.000243,3]
[385908947,1758131447492,-7162.692994,0.00024304,2]
[385908948,1758131447503,-300.0,0.00024311,2]
[385908949,1758131447512,-400.0,0.00024312,2]
[385908950,1758131447522,-379.28151147,0.00024312,2]
[385908951,1758131447531,-400.0,0.00024312,2]
[385908952,1758131447541,-400.0,0.00024312,2]
[385908953,1758131447550,-400.0,0.00024312,2]
[385908954,1758131447559,-400.0,0.00024312,2]
[385908955,1758131447568,-400.0,0.00024312,2]
[385908956,1758131447578,-400.0,0.00024312,2]
[385908957,1758131447587,-400.0,0.00024312,2]
[385908958,1758131447596,-400.0,0.00024312,2]
[385908959,1758131447607,-450.83,0.00024312,2]
[385908960,1758131447616,-400.0,0.00024312,2]
[385908961,1758131447628,-400.0,0.00024312,2]
[385908962,1758131447637,-400.0,0.00024312,2]
[385908963,1758131447646,-400.0,0.00024312,2]
[385908964,1758131447655,-534.29113416,0.00024312,2]
[385908965,1758131447665,-808.45,0.00024312,2]
[385908966,1758131447674,-159.91952446,0.00024312,2]
[385908967,1758131447683,-400.0,0.00024312,2]
[385908968,1758131447693,-400.0,0.00024312,2]
[385908969,1758131447702,-402.24640896,0.00024312,2]
[385908970,1758131447711,-400.0,0.00024312,2]
[385908971,1758131447720,-401.66639287,0.00024312,2]
[385908972,1758131447729,-460.51,0.00024312,2]
[385908973,1758131447739,-400.0,0.00024312,2]
[385908974,1758131447749,-400.0,0.00024312,2]
[385908975,1758131447759,-401.37231105,0.00024312,2]
[385908976,1758131447768,-400.0,0.00024312,2]
[385908977,1758131447778,-400.0,0.00024312,2]
[385908978,1758131447787,-400.0,0.00024312,2]
[385908979,1758131447796,-400.0,0.00024312,2]
[385908980,1758131447805,-400.0,0.00024312,2]
[385908981,1758131447814,-671.52,0.00024312,2]
[385908982,1758131447823,-400.0,0.00024312,2]
[385908983,1758131447833,-400.0,0.00024312,2]
[385908984,1758131447842,-400.0,0.00024312,2]
[385908985,1758131447851,-682.44,0.00024312,2]
[385908986,1758131447861,-388.04054091,0.00024312,2]
[385908987,1758131447870,-748.84,0.00024312,2]
[385908988,1758131447879,-400.0,0.00024312,2]
[385908989,1758131447888,-400.0,0.00024312,2]
[385908990,1758131447897,-150.57352171,0.00024312,2]
[385908991,1758131447906,-400.0,0.00024312,2]
[385908992,1758131447915,-400.0,0.00024312,2]
[385908993,1758131447928,-400.0,0.00024312,2]
[385908994,1758131447937,-422.58,0.00024312,2]
[385908995,1758131447946,-916.63,0.00024312,2]
[385908996,1758131447955,-400.0,0.00024312,2]
[385908997,1758131447964,-400.0,0.00024312,2]
[385908998,1758131447974,-876.13,0.00024312,2]
[385908999,1758131447983,-400.0,0.00024312,2]
[385909000,1758131447992,-752.91,0.00024312,2]
[385909001,1758131448003,-400.0,0.00024312,2]
[385909002,1758131448013,-400.0,0.00024312,2]
[385909003,1758131448022,-400.0,0.00024312,2]
[385909004,1758131448031,-400.0,0.00024312,2]
[385909005,1758131448040,-400.0,0.00024312,2]
[385909006,1758131448049,-400.0,0.00024312,2]
[385909007,1758131448059,-400.0,0.00024312,2]
[385909008,1758131448068,-673.53,0.00024312,2]
[385909009,1758131448077,-617.21,0.00024312,2]
[385909010,1758131448086,-400.0,0.00024312,2]
[385909011,1758131448095,-400.0,0.00024312,2]
[385909012,1758131448105,-400.0,0.00024312,2]
[385909013,1758131448114,-552.13,0.00024312,2]
[385909014,1758131448123,-400.0,0.00024312,2]
[385909015,1758131448133,-400.0,0.00024312,2]
[385909016,1758131448142,-772.46,0.00024312,2]
[385909017,1758131448151,-400.0,0.00024312,2]
[385909018,1758131448160,-400.0,0.00024312,2]
[385909019,1758131448170,-400.0,0.00024312,2]
[385909020,1758131448179,-421.05740607,0.00024312,2]
[385909021,1758131448189,-694.05,0.00024312,2]
[385909022,1758131448198,-400.0,0.00024312,2]
[385909023,1758131448207,-400.0,0.00024312,2]
[385909024,1758131448217,-400.0,0.00024312,2]
[385909025,1758131448227,-463.11,0.00024312,2]
[385909026,1758131448236,-400.0,0.00024312,2]
[385909027,1758131448245,-512.35,0.00024312,2]
[385909028,1758131448258,-400.0,0.00024312,2]
[385909029,1758131448267,-400.0,0.00024312,2]
[385909030,1758131448277,-400.0,0.00024312,2]
[385909031,1758131448286,-406.51,0.00024312,2]
[385909032,1758131448296,-400.0,0.00024312,2]
[385909033,1758131448305,-807.12,0.00024312,2]
[385909034,1758131448314,-400.0,0.00024312,2]
[385909035,1758131448323,-400.0,0.00024312,2]
[385909036,1758131448333,-408.51,0.00024312,2]
[385909037,1758131448343,-400.0,0.00024312,2]
[385909038,1758131448353,-400.0,0.00024312,2]
[385909039,1758131448364,-400.0,0.00024312,2]
[385909040,1758131448374,-400.0,0.00024312,2]
[385909041,1758131448385,-909.64,0.00024312,2]
[385909042,1758131448395,-400.0,0.00024312,2]
[385909043,1758131448405,-400.0,0.00024312,2]
[385909044,1758131448415,-401.0655583,0.00024312,2]
[385909045,1758131448425,-400.0,0.00024312,2]
[385909046,1758131448434,-487.21,0.00024312,2]
[385909047,1758131448443,-400.0,0.00024312,2]
[385909048,1758131448453,-400.0,0.00024312,2]
[385909049,1758131448462,-400.0,0.00024312,2]
[385909050,1758131448471,-400.0,0.00024312,2]
[385909051,1758131448481,-402.47757571,0.00024312,2]
[385909052,1758131448490,-554.75082277,0.00024312,2]
[385909053,1758131448499,-400.0,0.00024312,2]
[385909054,1758131448508,-400.0,0.00024312,2]
[385909055,1758131448517,-739.38,0.00024312,2]
[385909056,1758131448526,-241.07984298,0.00024312,2]
[385909057,1758131448536,-400.0,0.00024312,2]
[385909058,1758131448545,-400.0,0.00024312,2]
[385909059,1758131448555,-400.0,0.00024312,2]
[385909060,1758131448565,-400.0,0.00024312,2]
[385909061,1758131448574,-400.0,0.00024312,2]
[385909062,1758131448584,-487.4,0.00024312,2]
[385909063,1758131448593,-400.0,0.00024312,2]
[385909064,1758131448603,-406.76967796,0.00024312,2]
[385909065,1758131448613,-500.0,0.00024312,2]
[385909066,1758131448623,-400.0,0.00024312,2]
[385909067,1758131448633,-400.0,0.00024312,2]
[385909068,1758131448642,-404.91820168,0.00024312,2]
[385909069,1758131448652,-400.0,0.00024312,2]
[385909070,1758131448661,-400.0,0.00024312,2]
[385909071,1758131448671,-400.0,0.00024312,2]
[385909072,1758131448680,-507.67,0.00024312,2]
[385909073,1758131448690,-1000.0,0.00024312,2]
[385909074,1758131448699,-400.0,0.00024312,2]
[385909075,1758131448708,-468.69,0.00024312,2]
[385909076,1758131448718,-400.0,0.00024312,2]
[385909077,1758131448727,-400.0,0.00024312,2]
[385909078,1758131448736,-465.98,0.00024312,2]
[385909079,1758131448746,-400.0,0.00024312,2]
[385909080,1758131448756,-684.11,0.00024312,2]
[385909081,1758131448766,-404.04879301,0.00024312,2]
[385909082,1758131448775,-400.0,0.00024312,2]
[385909083,1758131448785,-400.0,0.00024312,2]
[385909084,1758131448794,-282.64974979,0.00024312,2]
[385909085,1758131448804,-403.42116149,0.00024312,2]
[385909086,1758131448813,-400.0,0.00024312,2]
[385909087,1758131448823,-400.0,0.00024312,2]
[385909088,1758131448832,-400.0,0.00024312,2]
[385909089,1758131448842,-400.0,0.00024312,2]
[385909090,1758131448851,-400.0,0.00024312,2]
[385909091,1758131448861,-400.0,0.00024312,2]
[385909092,1758131448872,-400.0,0.00024312,2]
[385909093,1758131448881,-400.0,0.00024312,2]
[385909094,1758131448891,-490.07,0.00024312,2]
[385909095,1758131448900,-590.87,0.00024312,2]
[385909096,1758131448911,-400.0,0.00024312,2]
[385909097,1758131448923,-400.0,0.00024312,2]
[385909098,1758131448933,-300.0,0.00024312,3]
[385909099,1758131448943,-400.0,0.00024312,2]
[385909100,1758131448953,-400.0,0.00024312,2]
[385909101,1758131448963,-400.0,0.00024312,2]
[385909102,1758131448972,-400.0,0.00024312,2]
[385909103,1758131448982,-400.0,0.00024312,2]
[385909104,1758131448991,-400.0,0.00024312,2]